Workbook

Sheet MSU
B1: Jukka Lahti | E1: 1.2.1977
B2: SUPERPESIS | E2: Runkosarja | I2: Kärkilyönnit (KL), pesänvälit | P2: Runkosarja TOP-30 | U2: Ylempi loppusarja | AB2: Ylempi loppusarja TOP-10 | AG2: Play off, voitot, voittoprosentti | AL2: Arvo-ottelut | AO2: Mitalit
B3: Vuosi | C3: Sija | D3: Seura | E3: OTT | F3: KUN | G3: LÖI | H3: TOI | I3: KL | J3: 0 > 1 | K3: 1 > 2 | L3: 2 > 3 | M3: 3 > k | N3: KL-% | P3: LÖI | Q3: TOI | R3: L+T | S3: KL | U3: OTT | V3: KUN | W3: LÖI | X3: TOI | Y3: KL | Z3: KL-% | AB3: LÖI | AC3: TOI | AD3: L+T | AE3: KL | AG3: Puolivälierät | AH3: Välierät | AI3: Pronssi | AJ3: Finaalit | AL3: IL | AM3: LL | AN3: hSM | AO3: K | AP3: H | AQ3: P
B4: 1995 | C4: 13. | D4: KaMa | E4: 8 | F4: 0 | G4: 0 | H4: 0 | I4: 0 | J4: 0 | K4: 0 | L4: 0 | M4: 0 | N4: 0.0 % | AA4: 0
B5: 1996 | C5: 6. | D5: KaMa 2 | F5: suomensarja | AA5: 0
B6: 1997 | C6: 1. | D6: KaMa | F6: ykköspesis
B7: 1998 | C7: 8. | D7: KaMa | E7: 24 | F7: 0 | G7: 2 | H7: 4 | I7: 30 | J7: 17 | K7: 9 | L7: 2 | M7: 2 | N7: 32.3 % | U7: 4 | V7: 0 | W7: 1 | X7: 0 | Y7: 7 | Z7: 33.3 % | AA7: 0 | AG7: 1-3 Lippo
B8: 1999 | C8: 8. | D8: KaMa | E8: 2 | F8: 0 | G8: 0 | H8: 0 | I8: 1 | J8: 1 | K8: 0 | L8: 0 | M8: 0 | N8: 16.7 % | AA8: 0
B9: 2000 | C9: 13. | D9: KaMa | E9: 21 | F9: 0 | G9: 3 | H9: 5 | I9: 42 | J9: 22 | K9: 11 | L9: 6 | M9: 3 | N9: 35.9 % | AA9: 66
B10: 2001 | C10: 6. | D10: KaMa 2 | F10: suomensarja
B11: 2002
B12: 2003 | C12: 2. | D12: Manse PP | F12: suomensarja | AA12: 0
B13: 2004 | C13: 2. | D13: Manse PP | F13: suomensarja | AA13: 0
B14: 2005 | C14: 3. | D14: Manse PP* | F14: suomensarja | AA14: 0
B15: 2006 | C15: 1. | D15: Manse PP* | F15: suomensarja | AA15: 40
B16: 2007 | C16: 9. | D16: Manse PP* | F16: ykköspesis | AA16: 74
B17: Yhteensä | E17: 55 | F17: 0 | G17: 5 | H17: 9 | I17: 73 | J17: 40 | K17: 20 | L17: 8 | M17: 5 | N17: 33.2 % | P17: 0-0-0 | Q17: 0-0-0 | R17: 0-0-0 | S17: 0-0-0 | U17: =PRODUCT(E23) -> 4 | V17: 0 | W17: 1 | X17: 0 | Y17: 7 | Z17: =PRODUCT(N23) -> 33.3 % | AA17: =SUM(AA3:AA16) -> 180 | AB17: 0-0-0 | AC17: 0-0-0 | AD17: 0-0-0 | AE17: 0-0-0 | AG17: 0/1 | AH17: 0/0 | AI17: 0/0 | AJ17: 0/0 | AL17: =SUM(AL4:AL16) -> 0 | AM17: 0 | AN17: 0 | AO17: 0 | AP17: 0 | AQ17: 0
AG18: 0.0 % | AH18: 0.0 % | AI18: 0.0 % | AJ18: 0.0 %
B19: Pesispörssi | D19: 55.0
B21: URA SUPERISSA | E21: OTT | F21: KUN | G21: LÖI | H21: TOI | I21: KL | K21: ka/L | L21: ka/T | M21: ka/KL | N21: KL-% | P21: ENSIMMÄISET RUNKOSARJASSA | AG21: ENSIMMÄISET PUDOTUSPELEISSÄ | AL21: YLEISÖ
B22: Runkosarja | E22: 55 | F22: 0 | G22: 5 | H22: 9 | I22: 73 | K22: 0.09 | L22: 0.16 | M22: 1.33 | N22: 33.2 % | P22: Ottelu | R22: 17.05. 1995 LP - KaMa 1-2 (3-2, 4-5, 0-1) | AB22: 1. ottelu | AE22: 18 v 4 kk 16 pv | AG22: Ottelu | AH22: 1. 18.08. 1998 Lippo - KaMa 2-0 | AL22: 2015 | AN22: 21 v 6 kk 17 pv
B23: Ylempi loppusarja | E23: 4 | F23: 0 | G23: 1 | H23: 0 | I23: 7 | K23: 0.25 | L23: 0.00 | M23: 1.75 | N23: 33.3 % | P23: Lyöty | R23: 12.07. 1998 KaMa - PattU 2-1 (10-2, 1-3, 1-0) | AB23: 23. ottelu | AE23: 19 v 11 kk 16 pv | AG23: Lyöty | AH23: 2. 20.08. 1998 KaMa - Lippo 2-1 k | AL23: 1070 | AN23: 21 v 6 kk 19 pv
B24: Alempi loppusarja | E24: 4 | F24: 0 | G24: 2 | H24: 0 | I24: 9 | K24: 0.50 | L24: 0.00 | M24: 2.25 | N24: 36.0 % | P24: Tuotu | R24: 17.05. 1998 KaMa - KiPa 2-1 (4-2, 1-3, 0-0, 1-0) | AB24: 11. ottelu | AE24: 19 v 9 kk 25 pv | AG24: Tuotu
B25: KAIKKI | E25: 63 | F25: 0 | G25: 8 | H25: 9 | I25: 89 | K25: 0.13 | L25: 0.14 | M25: 1.41 | N25: 33.5 % | P25: Kunnari | AG25: Kunnari
B27: Seurat | D27: KaMa = Kankaanpään Maila (1958)
D28: Manse PP = Mansen Pesäpallo (1978)
D29: Manse PP* = Manse PP, Tampere (2005)

Sheet MYP, MSS
B1: Jukka Lahti | E1: 1.2.1977
B2: YKKÖSPESIS | E2: Runkosarja | L2: Runkosarja TOP-10 | Q2: Jatkosarjat | X2: SUOMENSARJA | AA2: Runkosarja | AH2: Runkosarja TOP-10 | AM2: Jatkosarjat
B3: Vuosi | C3: Sija | D3: Seura | E3: OTT | F3: KUN | G3: LÖI | H3: TOI | I3: KL | J3: KL-% | L3: LÖI | M3: TOI | N3: L+T | O3: KL | Q3: OTT | R3: KUN | S3: LÖI | T3: TOI | U3: KL | V3: KL-% | X3: Vuosi | Y3: Sija | Z3: Seura | AA3: OTT | AB3: KUN | AC3: LÖI | AD3: TOI | AE3: KL | AF3: KL-% | AH3: LÖI | AI3: TOI | AJ3: L+T | AK3: KL | AM3: OTT | AN3: KUN | AO3: LÖI | AP3: TOI | AQ3: KL | AR3: KL-%
B4: 1997 | C4: 1. | D4: KaMa | E4: 17 | F4: 0 | G4: 10 | H4: 3 | I4: 22
X6: 2001 | Y6: 6. | Z6: KaMa 2 | AA6: 6 | AB6: 0 | AC6: 4 | AD6: 6 | AE6: 13 | AF6: 40.6 % | AG6: 32
X7: 2003 | Y7: 2. | Z7: Manse PP | AA7: 16 | AB7: 1 | AC7: 11 | AD7: 13 | AE7: 85 | AF7: 69.7 % | AG7: 122 | AM7: 5 | AN7: 0 | AO7: 0 | AP7: 2 | AQ7: 12 | AR7: 38.7 % | AS7: 31
X8: 2004 | Y8: 2. | Z8: Manse PP | AA8: 3 | AB8: 0 | AC8: 2 | AD8: 5 | AE8: 17 | AF8: 81.0 % | AG8: 21 | AM8: 4 | AN8: 0 | AO8: 3 | AP8: 4 | AQ8: 28 | AR8: 68.3 % | AS8: 41
X9: 2005 | Y9: 3. | Z9: Manse PP | AA9: 16 | AB9: 4 | AC9: 12 | AD9: 23 | AE9: 96 | AF9: 75.0 % | AG9: 128 | AK9: 4.
X10: 2006 | Y10: 1. | Z10: Manse PP | AA10: 14 | AB10: 3 | AC10: 14 | AD10: 35 | AE10: 95 | AF10: 77.2 % | AG10: 123 | AI10: 3. | AJ10: 6. | AK10: 4. | AM10: 6 | AN10: 0 | AO10: 2 | AP10: 8 | AQ10: 28 | AR10: 68.3 % | AS10: 41
B12: 2007 | C12: 9. | D12: Manse PP* | E12: 4 | F12: 0 | G12: 1 | H12: 1 | I12: 14 | J12: 70.0 % | K12: 20
B13: YHTEENSÄ | E13: =SUM(E4:E12) -> 21 | F13: =SUM(F4:F12) -> 0 | G13: =SUM(G4:G12) -> 11 | H13: =SUM(H4:H12) -> 4 | I13: =SUM(I4:I12) -> 36 | J13: 0.0 % | K13: =SUM(K4:K12) -> 20 | Q13: =SUM(Q4:Q12) -> 0 | R13: =SUM(R4:R12) -> 0 | S13: =SUM(S4:S12) -> 0 | T13: =SUM(T4:T12) -> 0 | U13: =SUM(U4:U12) -> 0 | V13: 0.0 % | W13: =SUM(W4:W12) -> 0 | X13: YHTEENSÄ | AA13: =SUM(AA4:AA12) -> 55 | AB13: =SUM(AB4:AB12) -> 8 | AC13: =SUM(AC4:AC12) -> 43 | AD13: =SUM(AD4:AD12) -> 82 | AE13: =SUM(AE4:AE12) -> 306 | AF13: =PRODUCT(AE13/AG13) -> 71.8 % | AG13: =SUM(AG4:AG12) -> 426 | AM13: =SUM(AM4:AM12) -> 15 | AN13: =SUM(AN4:AN12) -> 0 | AO13: =SUM(AO4:AO12) -> 5 | AP13: =SUM(AP4:AP12) -> 14 | AQ13: =SUM(AQ4:AQ12) -> 68 | AR13: =PRODUCT(AQ13/AS13) -> 60.2 % | AS13: =SUM(AS4:AS12) -> 113
B15: KAIKKI OTTELUT | E15: OTT | F15: KUN | G15: LÖI | H15: TOI | I15: KL | J15: KL-% | L15: ka/L | M15: ka/T | N15: ka/l+t | O15: ka/kl | R15: Seurat | T15: KaMa = Kankaanpään Maila (1958), kasvattajaseura
B16: SUPERPESIS | E16: 63 | F16: 0 | G16: 8 | H16: 9 | I16: 89 | J16: 33.5 % | K16: =PRODUCT(I16/J16) -> 265.6716418 | L16: =PRODUCT((F16+G16)/E16) -> 0.13 | M16: =PRODUCT(H16/E16) -> 0.14 | N16: =PRODUCT((F16+G16+H16)/E16) -> 0.27 | O16: =PRODUCT(I16/E16) -> 1.41 | T16: Manse PP = Mansen Pesäpallo (1978)
B17: YKKÖSPESIS | E17: =PRODUCT(E13+Q13) -> 21 | F17: =PRODUCT(F13+R13) -> 0 | G17: =PRODUCT(G13+S13) -> 11 | H17: =PRODUCT(H13+T13) -> 4 | I17: =PRODUCT(I13+U13) -> 36 | K17: =PRODUCT(K13+W13) -> 20 | L17: =PRODUCT((F17+G17)/E17) -> 0.52 | M17: =PRODUCT(H17/E17) -> 0.19 | N17: =PRODUCT((F17+G17+H17)/E17) -> 0.71 | O17: =PRODUCT(I17/E17) -> 1.71 | T17: Manse PP* = Manse PP, Tampere (2005)
B18: SUOMENSARJA | E18: =PRODUCT(AA13+AM13) -> 70 | F18: =PRODUCT(AB13+AN13) -> 8 | G18: =PRODUCT(AC13+AO13) -> 48 | H18: =PRODUCT(AD13+AP13) -> 96 | I18: =PRODUCT(AE13+AQ13) -> 374 | J18: =PRODUCT(I18/K18) -> 69.4 % | K18: =PRODUCT(AG13+AS13) -> 539 | L18: =PRODUCT((F18+G18)/E18) -> 0.80 | M18: =PRODUCT(H18/E18) -> 1.37 | N18: =PRODUCT((F18+G18+H18)/E18) -> 2.17 | O18: =PRODUCT(I18/E18) -> 5.34
B19: YHTEENSÄ | E19: =SUM(E16:E18) -> 154 | F19: =SUM(F16:F18) -> 8 | G19: 67 | H19: 109 | I19: 499 | K19: =SUM(K16:K18) -> 824.6716418 | L19: =PRODUCT((F19+G19)/E19) -> 0.49 | M19: =PRODUCT(H19/E19) -> 0.71 | N19: =PRODUCT((F19+G19+H19)/E19) -> 1.19 | O19: =PRODUCT(I19/E19) -> 3.24
